bitfinex/quotes_ETHUSD_20240729
["timestamp","ask_amount","ask_price","bid_price","bid_amount"]
[1722256357468,3.132105,3389.7,3389.2,2.3345]
[1722256357670,5.36016,3389.6,3389.2,2.3345]
[1722256357872,2.36016,3389.6,3389.2,2.3345]
[1722256358076,3.0,3389.6,3389.2,2.3345]
[1722256358330,2.35993,3390.0,3389.3,2.36034]
[1722256358633,2.54975018,3390.8,3389.4,3.065813]
[1722256358634,2.35981,3390.1,3389.4,3.065813]
[1722256358868,2.35981,3390.1,3389.4,2.36028]
[1722256359373,2.35988,3390.0,3389.4,2.36028]
[1722256359874,2.35988,3390.0,3389.2,4.69492]
[1722256359875,3.0,3390.1,3389.5,2.36022]
[1722256360033,2.35974,3390.2,3389.5,2.36022]
[1722256360235,2.35981,3390.1,3389.5,2.36022]
[1722256361289,3.0,3390.3,3389.6,2.36015]
[1722256361580,2.562,3390.5,3389.5,0.705508]
[1722256361581,2.35954,3390.5,3389.9,2.35994]
[1722256363236,2.3596,3390.4,3389.8,0.05899459]
[1722256363477,2.3596,3390.4,3389.7,2.3256]
[1722256363680,2.35985,3390.1,3389.4,4.80219]
[1722256363851,2.35974,3390.2,3389.6,2.36015]
[1722256364380,2.35965,3390.4,3389.6,2.36015]
[1722256364607,2.35965,3390.4,3389.7,2.36008]
[1722256364914,2.35968,3390.3,3389.4,4.80217]
[1722256365207,2.35965,3390.4,3389.6,2.36015]
[1722256365208,2.35976,3390.2,3389.6,2.36015]
[1722256365379,2.35968,3390.3,3389.4,5.518433]
[1722256365582,2.35968,3390.3,3389.4,4.80217]
[1722256365583,2.35986,3390.1,3389.4,4.80217]
[1722256365774,2.3599,3390.0,3389.4,4.80217]
[1722256366210,2.3599,3390.0,3389.3,2.36036]
[1722256366361,2.35974,3390.2,3389.4,2.36025]
[1722256366567,2.35974,3390.2,3389.5,2.36022]
[1722256367002,2.35962,3390.4,3389.3,1.191686]
[1722256367207,2.35969,3390.3,3389.7,4.78453]
[1722256367367,2.35979,3390.2,3389.7,2.4245]
[1722256367725,2.35979,3390.2,3389.4,2.36029]
[1722256367726,2.35988,3390.0,3389.4,2.36029]
[1722256367881,2.35979,3390.2,3389.3,2.4334]
[1722256368238,2.35979,3390.2,3389.6,2.36015]
[1722256370422,2.35967,3390.3,3389.7,2.36008]
[1722256370721,2.35967,3390.3,3389.7,2.83211]
[1722256370890,5.35958,3390.5,3389.8,2.35999]
[1722256371266,2.35962,3390.4,3389.7,2.36008]
[1722256372130,2.35968,3390.3,3389.7,2.36008]
[1722256374595,2.35974,3390.2,3389.5,2.36017]
[1722256375327,2.35981,3390.1,3389.4,7.29]
[1722256375533,2.35999,3389.9,3389.4,7.29]
[1722256377635,2.35999,3389.9,3389.3,2.36035]
[1722256378290,2.35983,3390.1,3389.6,2.36016]
[1722256380596,2.35983,3390.1,3389.4,4.82025]
[1722256381838,2.35983,3390.1,3389.4,2.46]
[1722256382044,2.35983,3390.1,3389.4,4.82028]
[1722256382045,2.35989,3390.0,3389.4,4.82028]
[1722256382828,0.771951,3390.1,3389.5,2.36022]
[1722256383151,2.35979,3390.2,3389.5,2.36022]
[1722256383374,5.35965,3390.4,3389.7,2.36008]
[1722256383649,5.35965,3390.4,3389.8,2.41896095]
[1722256383650,3.0,3390.4,3389.8,2.41896095]
[1722256383814,2.35957,3390.5,3389.8,2.41896095]
[1722256383815,5.35957,3390.5,3389.8,2.41896095]
[1722256384499,2.3596,3390.4,3389.9,2.35994]
[1722256384727,3.0,3390.5,3389.9,2.35994]
[1722256384911,3.0,3390.5,3390.0,2.35987]
[1722256385239,0.3089974,3390.8,3390.5,2.35953]
[1722256385538,2.35911,3391.2,3390.6,2.35946]
[1722256386140,2.35892,3391.4,3390.7,2.35933]
[1722256386343,2.35892,3391.4,3390.5,2.35952]
[1722256386344,2.35909,3391.2,3390.5,2.35952]
[1722256387737,2.35912,3391.1,3390.5,2.35952]
[1722256389229,5.35901,3391.3,3390.5,2.35952]
[1722256389543,5.35901,3391.3,3390.6,2.35946]
[1722256389734,5.35901,3391.3,3390.7,2.35939]
[1722256391319,6.2268421,3391.3,3390.7,2.35939]
[1722256393106,2.35883,3391.5,3390.7,2.35939]
[1722256393302,2.35851,3392.0,3390.8,0.0589777]
[1722256393508,4.84262,3392.1,3391.3,2.3629]
[1722256393709,2.35842,3392.1,3391.3,2.3629]
[1722256393951,2.35828,3392.3,3391.3,2.59919]
[1722256394162,2.35828,3392.3,3391.7,2.35868]
[1722256394850,2.35836,3392.2,3391.5,2.35883]
[1722256395054,2.35843,3392.1,3391.5,2.35883]
[1722256396051,2.35843,3392.1,3391.3,4.72185]
[1722256396052,0.720091,3392.1,3391.3,4.72185]
[1722256396409,0.720091,3392.1,3391.3,2.3629]
[1722256396410,2.3586,3391.9,3391.3,2.3629]
[1722256396909,3.0,3392.3,3391.3,2.3629]
[1722256397125,2.35866,3391.8,3391.3,2.3629]
[1722256397823,2.35849,3392.0,3391.3,2.3629]
[1722256398325,5.35842,3392.1,3391.5,2.35881]
[1722256398652,2.35842,3392.1,3391.5,2.35881]
[1722256399030,2.35823,3392.4,3391.6,2.35875]
[1722256399220,3.0,3392.7,3391.6,2.41772844]
[1722256399221,2.35808,3392.6,3391.6,2.41772844]
[1722256399415,3.0,3392.7,3391.6,2.41770844]
[1722256399416,2.35815,3392.5,3391.6,2.41770844]
[1722256399767,2.35815,3392.5,3391.7,2.35868]
[1722256399914,7.71606,3392.7,3391.7,2.35868]
[1722256400112,0.780781,3392.6,3391.7,2.35868]
[1722256400315,0.780781,3392.6,3391.6,0.05896844]
[1722256400316,2.35826,3392.4,3391.6,2.35872]
[1722256400562,2.35826,3392.4,3391.7,2.35869]
[1722256400563,2.35834,3392.3,3391.7,2.35869]
[1722256401178,2.35815,3392.5,3391.8,4.68972]
[1722256401460,3.0,3392.5,3392.0,2.35844]
[1722256401660,2.35788,3392.9,3392.0,2.35844]
[1722256401861,2.35804,3392.7,3392.0,2.35844]
[1722256402211,2.35804,3392.7,3392.1,2.35841]
[1722256402384,0.465298,3392.8,3392.1,2.35841]
[1722256402748,2.358,3392.7,3392.1,2.35841]
[1722256403994,2.35807,3392.6,3391.9,2.41751004]
[1722256404308,2.35807,3392.6,3392.0,2.35847]
[1722256404792,2.823268,3392.8,3392.1,2.35841]
[1722256404996,5.35797,3392.8,3392.2,2.35834]
[1722256405306,2.35801,3392.7,3391.9,2.41751004]
[1722256405601,2.35797,3392.8,3392.1,2.35842]
[1722256405759,5.3578,3393.0,3392.3,2.35827]
[1722256406109,2.35793,3392.8,3392.2,2.35834]
[1722256406398,5.3578,3393.0,3392.3,2.35827]
[1722256406602,2.35786,3392.9,3392.3,2.35827]
[1722256406897,5.35786,3392.9,3392.3,2.35827]
[1722256408500,3.0,3392.9,3392.4,4.70357]
[1722256409003,3.0,3393.0,3392.5,2.35811]
[1722256409212,2.35774,3393.1,3392.4,3.051596]
[1722256409503,2.35774,3393.1,3392.4,2.3454]
[1722256409504,2.35786,3392.9,3392.4,2.3454]
[1722256409708,2.593514,3393.1,3392.4,4.76252893]
[1722256409909,3.0,3393.0,3392.5,2.35814]
[1722256410471,3.0,3393.0,3392.4,2.40434892]
[1722256410472,5.3578,3393.0,3392.4,2.40434892]
[1722256410696,2.35788,3392.9,3392.4,2.3454]
[1722256411411,3.0,3393.0,3392.4,4.7036]
[1722256411581,3.0,3393.0,3392.5,2.35814]
[1722256411787,2.35752,3393.4,3392.8,2.35789]
[1722256412105,2.35733,3393.7,3392.9,4.83925]
[1722256412272,2.3515,3394.0,3392.9,2.4814]
[1722256412273,2.35738,3393.6,3392.9,2.4814]
[1722256412474,2.35756,3393.4,3392.6,2.4361]
[1722256412706,0.727059,3393.9,3392.1,2.35839]
[1722256412707,2.35788,3392.9,3392.1,2.35839]
[1722256413016,2.329,3393.5,3392.2,2.35829]
[1722256413017,2.35793,3392.8,3392.2,2.35829]
[1722256413322,2.35784,3393.0,3392.4,2.35816]
[1722256413491,0.4891,3393.4,3392.5,2.35814]
[1722256413492,2.3577,3393.2,3392.5,2.35814]
[1722256413812,2.35759,3393.3,3392.4,4.82396]
[1722256414026,3.4891,3393.4,3392.4,2.4658]
[1722256414027,2.35783,3393.0,3392.4,2.4658]
[1722256414227,2.35787,3392.9,3392.4,2.4658]
[1722256414381,2.35786,3392.9,3392.4,2.4658]
[1722256415790,2.35774,3393.1,3392.4,2.4658]
[1722256415791,2.35775,3393.1,3392.4,2.4658]
[1722256415990,0.3175319,3393.0,3392.4,2.4658]
[1722256416424,2.35775,3393.1,3392.4,2.4658]
[1722256416712,2.35781,3393.0,3392.4,2.4658]
[1722256416917,2.35775,3393.1,3392.4,2.4658]
[1722256416918,2.35791,3392.9,3392.4,2.4658]
[1722256417487,2.35796,3392.8,3392.1,2.3694]
[1722256418574,2.35804,3392.7,3392.1,2.3694]
[1722256418778,2.35804,3392.7,3392.1,4.72777]
[1722256419076,2.35789,3392.9,3392.2,2.35834]
[1722256419281,5.35774,3393.1,3392.4,2.35816]
[1722256419725,5.35774,3393.1,3392.6,2.447]
[1722256419726,2.35774,3393.1,3392.6,2.447]
[1722256420040,3.0,3393.2,3392.6,2.447]
[1722256420041,2.35779,3393.0,3392.6,2.447]
[1722256420323,2.35787,3392.9,3392.6,2.447]
[1722256420827,2.35787,3392.9,3392.3,2.35823]
[1722256420828,2.35801,3392.7,3392.3,2.2692]
[1722256421031,2.35787,3392.9,3392.3,2.2692]
[1722256421678,2.35787,3392.9,3392.3,4.62745]
[1722256421885,2.35787,3392.9,3392.3,5.326032]
[1722256422232,2.35787,3392.9,3392.3,2.967782]
[1722256422515,2.358,3392.7,3392.3,2.967782]
[1722256423429,2.358,3392.7,3392.3,2.2692]
[1722256426010,2.358,3392.7,3392.0,4.74273]
[1722256426734,2.358,3392.7,3392.0,2.3843]
[1722256426936,2.35776,3393.1,3392.0,2.3843]
[1722256427143,2.35819,3392.5,3392.0,2.3843]
[1722256427435,2.35819,3392.5,3391.2,2.35901]
[1722256427436,2.35847,3392.1,3391.7,2.4834]
[1722256427651,2.35807,3392.6,3391.2,2.35903]
[1722256427652,2.35853,3392.0,3391.2,2.35903]
[1722256427946,2.562,3391.3,3390.4,2.35959]
[1722256428246,2.562,3391.3,3389.5,0.246]
[1722256428247,2.3594,3390.7,3389.5,0.246]
[1722256428408,2.35954,3390.5,3389.8,2.35996]
[1722256428608,2.35954,3390.5,3389.6,2.36015]
[1722256428809,2.3594,3390.7,3389.7,2.868995]
[1722256428998,2.35961,3390.4,3389.7,2.869025]
[1722256429196,2.35932,3390.8,3389.7,0.508955]
[1722256429544,5.35906,3391.2,3390.2,4.79618]
[1722256429744,2.4702,3391.6,3390.2,2.916118]
[1722256429745,2.35933,3390.8,3390.2,2.916118]
[1722256429907,2.35933,3390.8,3390.2,2.4365]
[1722256430107,2.35939,3390.7,3390.2,2.4365]
[1722256430309,2.35928,3390.9,3390.2,2.4365]
[1722256430606,5.35919,3391.0,3390.3,2.35962]
[1722256430824,2.35919,3391.0,3390.3,3.075225]
[1722256431195,2.35905,3391.2,3390.4,2.35959]
[1722256431416,5.35912,3391.1,3390.4,2.35959]
[1722256431631,2.35912,3391.1,3390.4,2.35959]
[1722256432136,3.0,3391.2,3390.4,2.35959]
[1722256432137,3.0,3391.2,3390.4,0.7871425]
[1722256432306,3.0,3391.8,3390.6,2.35946]
[1722256432509,2.35889,3391.5,3390.9,2.3592]
[1722256432723,2.35889,3391.5,3390.7,2.35938]
[1722256433042,2.35891,3391.4,3390.8,2.35932]
[1722256433417,2.35881,3391.6,3390.9,2.35922]
[1722256433597,2.35881,3391.6,3390.8,2.35932]
[1722256434142,2.35863,3391.8,3391.1,2.35907]
[1722256434297,2.35863,3391.8,3391.1,2.3591]
[1722256434298,2.35869,3391.8,3391.1,2.3591]
[1722256434644,2.35876,3391.6,3391.1,0.471842]
[1722256434799,2.35876,3391.6,3390.8,2.35932]
[1722256434800,2.35876,3391.6,3391.0,2.35917]
[1722256435507,2.562,3392.2,3390.8,2.35932]
[1722256435508,2.35883,3391.5,3390.8,2.35932]
[1722256435994,2.35883,3391.5,3390.6,2.35944]
[1722256435995,2.35883,3391.5,3390.9,2.35925]
[1722256436609,2.35899,3391.3,3390.6,2.35944]
[1722256436807,2.35899,3391.3,3390.5,2.3387]
[1722256436808,2.35883,3391.5,3390.5,4.69823]
[1722256437023,2.35891,3391.4,3390.8,2.35932]
[1722256437220,2.35878,3391.6,3390.8,0.705755]
[1722256437421,2.35872,3391.7,3391.1,2.35906]
[1722256437820,2.35872,3391.7,3390.9,2.35924]
[1722256438052,2.35872,3391.7,3391.0,2.35918]
[1722256438215,2.35872,3391.7,3391.1,2.35911]
[1722256438539,3.0,3391.8,3391.2,2.35899]
[1722256438764,2.35864,3391.8,3391.2,2.35899]
[1722256439059,5.35864,3391.8,3391.2,2.35899]
[1722256439203,2.35864,3391.8,3391.2,2.35899]
[1722256440317,2.35871,3391.7,3391.0,2.35913]
[1722256440652,3.0,3392.0,3391.3,2.35895]
[1722256440820,2.35846,3392.1,3390.5,2.3387]
[1722256440821,5.35842,3392.1,3391.2,2.35902]
[1722256441021,2.35871,3391.7,3391.0,2.35917]
[1722256441224,2.35863,3391.8,3390.9,2.35923]
[1722256441410,2.35885,3391.5,3390.7,2.35934]
[1722256441610,0.471755,3391.4,3390.8,2.35931]
[1722256441804,2.3587,3391.7,3390.8,2.35931]
[1722256442012,3.0,3392.1,3391.1,2.35906]
[1722256442013,2.35863,3391.8,3391.1,2.35906]
[1722256442207,2.35863,3391.8,3391.1,2.35908]
[1722256442508,2.3587,3391.7,3391.1,2.35908]
[1722256442748,3.0,3391.9,3390.8,2.35931]
[1722256442749,2.35892,3391.4,3390.8,2.35931]
[1722256443067,3.535849,3391.9,3390.9,2.35925]
[1722256443068,2.35883,3391.5,3390.9,2.35925]
[1722256443267,2.35871,3391.7,3390.7,2.35934]
[1722256443413,2.35909,3391.2,3390.5,2.3387]
[1722256443606,2.35909,3391.2,3390.4,2.35958]
[1722256443607,2.35919,3391.0,3390.4,2.35958]
[1722256443826,2.35912,3391.1,3390.5,2.35948]
[1722256444164,2.35903,3391.3,3390.6,2.35946]
[1722256444315,6.2047101,3391.3,3390.6,2.35946]
[1722256444649,0.30885665,3391.0,3390.4,2.4427]
[1722256445012,0.30885665,3391.0,3390.6,2.35946]
[1722256445216,0.30885665,3391.0,3390.5,2.35953]
[1722256445530,0.30885665,3391.0,3390.4,2.4427]
[1722256445531,2.66804665,3391.0,3390.4,2.4427]
[1722256445855,2.66804665,3391.0,3390.4,4.8023]
[1722256446159,0.30885665,3391.0,3390.5,2.35953]
[1722256446813,0.30885665,3391.0,3390.4,2.4427]
[1722256447012,2.35938,3390.8,3390.1,2.35978]
[1722256447442,2.35938,3390.8,3390.2,2.35974]
[1722256447618,2.35938,3390.8,3389.8,7.29]
[1722256447619,0.30885665,3391.0,3390.9,4.7185]
[1722256447821,0.30885665,3391.0,3390.9,9.42642135]
[1722256448031,0.30885665,3391.0,3390.9,8.20704214]
[1722256448506,0.30885665,3391.0,3390.9,5.84779214]
[1722256448611,0.30885665,3391.0,3390.8,2.35927]
[1722256448815,0.30885665,3391.0,3390.9,2.35925]
[1722256449047,4.6837,3391.7,3390.9,2.35925]
[1722256449246,0.30884187,3391.4,3391.0,0.05897603]
[1722256449453,0.30884187,3391.4,3391.3,2.35897]
[1722256449711,2.35806,3392.7,3391.1,2.2897]
[1722256449712,2.3583,3392.3,3391.1,2.2897]
[1722256449916,2.3583,3392.3,3391.2,0.2348676]
[1722256449917,2.325,3392.2,3391.2,0.2348676]
[1722256450151,2.325,3392.2,3391.1,2.2897]
[1722256450152,4.68335,3392.2,3391.3,2.35895]
[1722256450764,2.325,3392.2,3391.7,2.35869]
[1722256451063,2.325,3392.2,3391.5,2.35882]
[1722256451940,2.325,3392.2,3391.2,7.29]
[1722256452272,2.35862,3391.9,3391.2,7.29]
[1722256452669,3.0,3392.0,3391.2,7.29]
[1722256452834,0.55,3391.9,3391.2,7.29]
[1722256453867,2.35863,3391.8,3391.2,7.29]
[1722256454180,3.0,3391.8,3391.2,7.29]
[1722256454356,3.0137,3391.7,3391.2,7.29]
[1722256454930,3.0137,3391.7,3390.9,2.35924]
[1722256455469,0.655,3391.7,3391.0,2.35917]
[1722256455676,3.655,3391.7,3391.0,2.35917]
[1722256455856,0.901357,3391.6,3391.2,2.35904]
[1722256456034,3.0,3391.9,3391.3,2.35897]
[1722256456230,3.768321,3392.1,3391.4,2.35885]
[1722256456968,6.126741,3392.1,3391.2,2.35904]
[1722256457170,2.35851,3392.0,3391.2,2.35904]
[1722256457481,1.11190801,3391.9,3391.2,2.35904]
[1722256457776,6.47047801,3391.9,3391.2,2.35904]
[1722256457960,4.11190801,3391.9,3391.3,2.35895]
[1722256458159,4.11190801,3391.9,3390.7,7.29]
[1722256458160,3.3057028,3391.8,3391.0,2.35918]
[1722256458369,3.0,3391.7,3391.0,2.35918]
[1722256458617,2.35867,3391.8,3391.0,2.35918]
[1722256459611,3.0,3391.9,3390.8,2.45637996]
[1722256459776,3.0,3392.1,3390.8,2.45637996]
[1722256459981,3.0,3392.1,3391.1,2.35905]
[1722256459982,3.73504091,3392.1,3391.1,2.35905]
[1722256460172,3.73504091,3392.1,3391.2,2.35903]
[1722256460173,0.55,3392.0,3391.2,2.35903]
[1722256460368,0.55,3392.0,3391.3,2.35897]
[1722256460369,2.35856,3391.9,3391.3,2.35897]
[1722256460679,0.66436009,3391.8,3391.1,2.35907]
[1722256460884,3.02301009,3391.8,3391.1,2.35907]
[1722256461080,3.0,3391.7,3391.2,2.35904]
[1722256461281,0.66436009,3391.8,3391.3,2.35892]
[1722256461468,0.30882906,3392.2,3391.4,2.3272]
[1722256461818,0.30882906,3392.2,3391.9,2.35852]
[1722256462109,0.30882906,3392.2,3391.4,2.3272]
[1722256462110,0.30882906,3392.2,3392.1,2.35842]
[1722256462681,2.35786,3392.9,3392.2,2.35829]
[1722256462885,0.235786,3392.8,3392.3,2.35827]
[1722256463357,2.35779,3393.0,3392.1,2.35836]
[1722256463486,2.35794,3392.8,3392.1,2.35836]
[1722256463828,2.358,3392.7,3392.1,2.35836]
[1722256464725,2.35812,3392.6,3391.9,9.64854]
[1722256464942,0.471612,3392.5,3391.9,7.29]
[1722256465088,2.35828,3392.3,3391.9,7.29]
[1722256465648,2.35835,3392.2,3391.9,7.29]
[1722256465789,2.35835,3392.2,3391.5,2.3588]
[1722256466637,2.35846,3392.1,3391.4,2.3589]
[1722256467443,2.35874,3391.7,3391.3,7.29]
[1722256467982,2.3589,3391.5,3391.3,7.29]
[1722256468187,2.83067,3391.4,3390.6,4.73445]
[1722256468430,0.47176,3391.4,3390.8,2.35929]
[1722256468630,0.47176,3391.4,3390.9,2.35924]
[1722256469437,2.83067,3391.4,3390.7,2.35934]
[1722256470226,0.47176,3391.4,3390.8,2.3593]
[1722256470428,2.35876,3391.6,3390.9,2.35923]
[1722256470589,5.3587,3391.7,3390.9,2.35923]
[1722256470795,2.90878,3391.6,3390.9,2.35923]
[1722256472106,0.55,3391.6,3391.0,2.35911]
[1722256472430,0.5712569,3391.5,3390.9,2.35923]
[1722256472650,0.56660529,3391.5,3390.9,2.35923]
[1722256473413,2.92543529,3391.5,3390.9,2.35923]
[1722256474023,0.59254353,3391.4,3390.7,2.35934]
[1722256474225,0.59254353,3391.4,3390.8,2.3593]
[1722256474422,0.59254353,3391.4,3390.9,2.35925]
[1722256474597,0.59254353,3391.4,3390.8,2.35927]
[1722256474935,0.59254353,3391.4,3390.9,2.35925]
[1722256475109,0.56660529,3391.5,3390.9,2.35925]
[1722256475489,0.56660529,3391.5,3390.7,2.35939]
[1722256475739,2.92545529,3391.5,3390.8,2.35931]
[1722256475893,2.92545529,3391.5,3390.9,2.35925]
[1722256477911,0.56660529,3391.5,3391.1,2.3591]
[1722256478116,0.30883622,3391.4,3391.1,2.3591]
[1722256478438,0.30883622,3391.4,3391.3,4.71794]
[1722256478642,3.075179,3392.4,3391.1,2.830895]
[1722256478796,0.30879828,3392.0,3391.7,2.35867]
[1722256479537,0.30879828,3392.0,3391.5,2.35883]
[1722256479538,0.30879828,3392.0,3391.8,2.35862]
[1722256480038,0.30879828,3392.0,3391.7,2.35869]
[1722256481379,0.30879828,3392.0,3391.2,7.29]
[1722256481519,0.30879828,3392.0,3391.4,2.3589]
[1722256481856,2.66728828,3392.0,3391.4,2.3589]
[1722256482159,2.66728828,3392.0,3391.2,9.64904]
[1722256482318,1.06755511,3392.0,3391.2,7.29]
[1722256482516,2.35863,3391.8,3391.2,7.29]
[1722256483967,2.35877,3391.6,3391.2,7.29]
[1722256484323,2.35892,3391.4,3390.7,2.35937]
[1722256484633,2.35884,3391.5,3390.8,2.35931]
[1722256485259,2.35891,3391.4,3390.6,2.35946]
[1722256485964,2.35891,3391.4,3390.7,2.35938]
[1722256486376,2.830671,3391.4,3390.5,12.00272]
[1722256486528,2.35891,3391.4,3390.5,9.64952]
[1722256487042,2.35898,3391.3,3390.6,2.35946]
[1722256487230,2.35905,3391.2,3390.5,7.29]
[1722256487426,2.35911,3391.1,3390.5,7.29]
[1722256487627,2.35922,3391.0,3390.3,2.35965]
[1722256487883,2.35927,3390.9,3390.2,7.29]
[1722256488168,2.35927,3390.9,3390.2,9.64973]
[1722256488771,0.464431,3391.0,3389.5,7.29]
[1722256489069,2.35953,3390.5,3389.9,2.35993]
[1722256489271,4.52401354,3390.7,3390.0,2.35987]
[1722256489593,2.35944,3390.7,3390.0,2.35987]
[1722256489794,0.5821634,3390.6,3390.0,2.35987]
[1722256490151,5.82144399,3390.9,3390.0,2.35987]
[1722256490356,2.35932,3390.8,3390.2,2.35973]
[1722256490565,0.55,3390.7,3390.2,2.35973]
[1722256490967,0.55,3390.8,3390.2,2.35973]
[1722256491172,1.67060836,3390.8,3390.2,2.35973]
[1722256491683,2.16367214,3391.0,3390.2,4.8004]
[1722256492000,2.35923,3391.0,3390.4,2.3596]
[1722256493456,2.35912,3391.1,3390.5,2.35953]
[1722256493679,0.464432,3391.0,3390.3,2.35962]
[1722256493892,0.464432,3391.0,3390.4,2.35959]
[1722256494152,0.3088794,3390.9,3390.4,2.35959]
[1722256494355,0.3088794,3390.9,3390.5,2.35952]
[1722256495405,0.3088794,3390.9,3390.2,4.80044]
[1722256495406,0.3088794,3390.9,3390.6,2.35944]
[1722256495569,0.3088794,3390.9,3390.7,2.35939]
[1722256495767,0.3088794,3390.9,3390.5,2.35948]
[1722256495989,0.3088794,3390.9,3390.6,2.35945]
[1722256496174,0.3088794,3390.9,3390.2,2.4407]
[1722256496175,0.3088794,3390.9,3390.7,2.35939]
[1722256496380,0.3088794,3390.9,3390.5,2.35952]
[1722256496593,0.3088794,3390.9,3390.7,2.35937]
[1722256496773,0.3088794,3390.9,3390.8,2.35932]
[1722256497495,0.3088794,3390.9,3390.6,2.35941]
[1722256498686,0.3088794,3390.9,3390.4,2.35957]
[1722256499059,0.3088794,3390.9,3390.5,2.35952]
[1722256500179,0.3088794,3390.9,3390.8,2.35932]
[1722256500358,0.3088794,3390.9,3390.8,4.71864]
[1722256500561,0.3088794,3390.9,3390.8,4.76402]
[1722256501107,0.3088794,3390.9,3390.8,2.4047]
[1722256501264,0.3088794,3390.9,3390.4,2.35958]
[1722256501698,0.3088794,3390.9,3390.8,2.35932]
[1722256502000,0.3088794,3390.9,3390.6,2.35942]
[1722256502517,0.3088794,3390.9,3390.8,2.35932]
[1722256502895,0.3088794,3390.9,3390.7,2.35939]
[1722256503793,0.3088794,3390.9,3390.8,2.35932]
[1722256506568,0.3088794,3390.9,3390.8,5.19051]
[1722256506764,0.3088794,3390.9,3390.8,7.14924]
[1722256506968,0.3088794,3390.9,3390.8,4.78992]
[1722256507208,0.3088794,3390.9,3390.8,2.35932]
[1722256507969,0.3088794,3390.9,3390.6,2.35944]
[1722256508383,0.3088794,3390.9,3390.7,2.35938]
[1722256509200,0.3088794,3390.9,3390.2,2.3517]
[1722256509432,0.3088794,3390.9,3390.7,2.35934]
[1722256509610,0.3088794,3390.9,3390.2,2.3517]
[1722256509611,0.3088794,3390.9,3390.6,2.35946]
[1722256510118,0.3088794,3390.9,3390.4,2.3596]
[1722256510321,0.3088794,3390.9,3390.4,2.35955]
[1722256510630,2.6681494,3390.9,3390.3,2.35967]
[1722256510919,2.6681494,3390.9,3390.0,11.59086]
[1722256511119,2.6681494,3390.9,3390.2,2.35969]
[1722256511528,2.35955,3390.5,3390.0,7.29]
[1722256512213,0.3089047,3390.4,3390.0,7.29]
[1722256514549,2.6685047,3390.4,3390.0,7.29]
[1722256514693,2.35967,3390.3,3390.0,7.29]
[1722256514895,0.3089047,3390.4,3390.0,7.29]
[1722256515201,0.3089047,3390.4,3390.1,2.35979]
[1722256515737,0.3089047,3390.4,3390.0,9.231]
[1722256516098,0.3089047,3390.4,3390.0,9.64986]
[1722256517535,0.3089047,3390.4,3390.0,2.35986]
[1722256518034,0.3089047,3390.4,3390.1,2.35981]
[1722256519163,0.3089047,3390.4,3390.2,2.35973]
[1722256519357,0.3089047,3390.4,3390.3,2.35967]
[1722256519544,0.3089047,3390.4,3390.3,2.831619]
[1722256519746,0.3089047,3390.4,3390.3,0.471949]
[1722256519913,0.3089047,3390.4,3390.2,2.35972]
[1722256520827,0.3089047,3390.4,3390.1,2.35976]
[1722256521961,0.3089047,3390.4,3390.2,2.35973]
[1722256526673,0.3089047,3390.4,3390.3,4.71934]
[1722256529467,0.3089047,3390.4,3390.3,6.98304]
[1722256529672,0.3089047,3390.4,3390.3,7.681344]
[1722256530220,3.0,3391.3,3390.8,2.35926]
[1722256530728,5.3454,3391.4,3390.9,2.35925]
[1722256530926,0.30886281,3391.2,3390.9,2.35925]
[1722256531524,0.30886281,3391.2,3391.0,2.35917]
[1722256531725,0.30886281,3391.2,3391.0,2.35911]
[1722256532461,0.30886281,3391.2,3390.9,2.3592]
[1722256532672,0.30886281,3391.2,3391.1,2.35911]
[1722256533029,0.30886281,3391.2,3391.0,2.35917]
[1722256534468,0.30886281,3391.2,3390.8,2.35929]
[1722256534831,0.30886281,3391.2,3390.9,2.35924]
[1722256535226,0.30886281,3391.2,3390.8,2.35929]
[1722256537675,0.30886281,3391.2,3391.1,4.71822]
[1722256540830,0.30886281,3391.2,3391.1,7.07733]
[1722256541033,2.16451761,3392.6,3392.1,2.35842]
[1722256541295,2.3353,3392.7,3392.1,2.35842]
[1722256541296,2.16451761,3392.7,3392.1,0.05896075]
[1722256541497,2.2751,3393.1,3392.5,2.35814]
[1722256541498,0.30877862,3392.6,3392.5,2.35814]
[1722256541792,2.4054,3393.5,3392.7,2.35796]
[1722256541938,0.30876454,3393.3,3392.9,2.35785]
[1722256542144,0.30876454,3393.3,3392.7,2.35796]
[1722256542388,0.30876454,3393.3,3392.9,2.35781]
[1722256542870,0.30876454,3393.3,3392.8,2.35791]
[1722256543577,0.49641955,3393.4,3392.8,2.35791]
[1722256543777,0.52591996,3393.3,3392.8,2.35791]
[1722256543980,0.83464096,3393.3,3392.8,2.35791]
[1722256544968,0.83464096,3393.3,3392.6,2.35807]
[1722256545857,0.83464096,3393.3,3392.4,12.014]
[1722256546086,0.6240041,3393.2,3392.6,2.35806]
[1722256546477,0.6240041,3393.2,3392.7,2.358]
[1722256546790,0.308721,3393.3,3392.7,2.358]
[1722256548654,0.308721,3393.3,3392.6,2.35805]
[1722256549056,0.308721,3393.3,3392.7,2.35799]
[1722256551175,0.308721,3393.3,3392.6,2.35806]
[1722256551570,2.35765,3393.2,3392.5,2.35813]
[1722256551799,3.0,3393.2,3392.5,2.35813]
[1722256551970,1.1158841,3393.3,3392.5,2.35813]
[1722256552277,1.1158841,3393.3,3392.6,2.35805]
[1722256553460,3.4734741,3393.3,3392.6,2.35805]
[1722256553708,3.0,3393.2,3392.6,2.35805]
[1722256553911,3.88788741,3393.2,3392.6,2.35805]
[1722256555282,3.88788741,3393.2,3392.4,9.6558]